Cogmind - Beta 14 @@@ ROGUE MODE // 2024.08.14 @ 01:46:52 Player: Darcyisverycute Result: Destroyed by X-57 Shotgunner with Shotgun Performance ------------- Evolutions (2) 1000 Regions Visited (6) 1200 Robots Destroyed (64) 320 Value Destroyed (2314) 2314 Prototype IDs (7) 140 Alien Tech Used (0) 0 Bonus (569) 569 TOTAL SCORE: 5543 Bonus ------- High Alert Combat Kills 251 Follower Combat Kills 118 Entered Garrisons 200 Cogmind --------- Core Integrity 0/550 Matter 402/450 Energy 54/100 System Corruption 15% Temperature Cool (0) Movement Core (50) Location -8/Materials Parts ------- > --- POWER (1) -------- (None) > --- PROPULSION (4) --- (None) > --- UTILITY (4) ------ Compact Matter Pod Improved Sensor Array Hacking Suite > --- WEAPON (2) ------- (None) > --- INVENTORY (5) ---- Improved Terrain Scanner Relay Coupler [Sentry] (17) Advanced Beam Cannon Hammer Scythe Peak State ------------ > --- POWER ------------ Light Nuclear Core > --- PROPULSION ------- Improved Hover Unit Airjet Improved Flight Unit > --- UTILITY ---------- Hardened Light Armor Plating Hacking Suite Hacking Suite Hacking Suite > --- WEAPON ----------- Improved EM Shotgun Shock Bomb Launcher > --- INVENTORY -------- Improved Terrain Scanner Melee Analysis Suite Relay Coupler [NC] Advanced Beam Cannon Hammer [Rating: 29] Favorites ----------- Power Light Nuclear Core Engine Ion Engine Power Core Light Nuclear Core Propulsion Aluminum Leg Leg Aluminum Leg Wheel Armored Wheel Hover Unit Improved Hover Unit Flight Unit Improved Flight Unit Utility Hacking Suite Device Sensor Array Storage Large Storage Unit Processor Transport Network Coupler Hackware Hacking Suite Protection Core Shielding Weapon Hammer Energy Gun Improved Medium Laser Energy Cannon Advanced Beam Cannon Ballistic Cannon Improved Light Cannon Launcher Grenade Launcher Impact Weapon Hammer Slashing Weapon Scythe Build | -11 -10 -9 -9 -8 -8 -8 ------- Run | Yrd Mat Mat Sto Mat Gar Mat Slots Evolved 4 | . . 2 . 2 . . Power . | . . . . . . . Propulsion 2 | . . 2 . . . . Utility 2 | . . . . 2 . . Weapon . | . . . . . . . Parts Attached 69 | 5 2 7 20 9 7 19 Power 8 | 1 . 1 2 1 . 3 Engine 5 | 1 . 1 2 . . 1 Core 3 | . . . . 1 . 2 Reactor . | . . . . . . . Propulsion 18 | 2 . 1 7 2 2 4 Treads . | . . . . . . . Leg 8 | 2 . 1 3 . . 2 Wheel 2 | . . . 2 . . . Hover 2 | . . . . 2 . . Flight 6 | . . . 2 . 2 2 Utility 18 | 1 1 2 1 5 1 7 Device 2 | . 1 . . . . 1 Storage 3 | 1 . 1 . . . 1 Processor 3 | . . . 1 . 1 1 Hackware 3 | . . . . 3 . . Protection 7 | . . 1 . 2 . 4 Artifact . | . . . . . . . Weapon 25 | 1 1 3 10 1 4 5 Energy Gun 6 | 1 . 1 3 . 1 . Energy Cannon 4 | . . . 4 . . . Ballistic Gun . | . . . . . . . Ballistic Cannon 5 | . . 2 2 . . 1 Launcher 5 | . 1 . 1 . 2 1 Special Weapon . | . . . . . . . Impact Weapon 3 | . . . . 1 1 1 Slashing Weapon 2 | . . . . . . 2 Piercing Weapon . | . . . . . . . Special Melee Weapon . | . . . . . . . Unidentified Prototypes 4 | . . . 4 . . . Corrupted Parts 1 | . . . . . 1 . System Corruption 10 | . . . . . 10 . Parts Lost 36 | . . 8 6 1 5 16 Power 6 | . . 2 . . 1 3 Propulsion 17 | . . 2 5 1 3 6 Utility 7 | . . 1 . . 1 5 Weapon 6 | . . 3 1 . . 2 Highest Loss Streak 8 | . . 4 3 1 4 8 To Critical Strikes 1 | . . . 1 . . . Average Slot Usage (%) 75 | . 84 72 83 62 80 57 Engine 4 | . 14 8 5 . . . Core 2 | . . . . 5 7 5 Leg 14 | . 28 26 20 . . 9 Wheel 1 | . . . 4 . . . Hover 3 | . . . . 6 14 . Flight 8 | . . . 12 9 15 5 Device 1 | . 11 5 . . . . Storage 7 | . 14 11 10 . . 6 Processor 4 | . . . 8 9 2 . Hackware 7 | . . . . 21 22 9 Protection 4 | . . 5 2 2 7 6 Energy Gun 3 | . 11 . 7 . 1 . Energy Cannon 3 | . . . 10 3 . . Ballistic Cannon 3 | . . 14 1 . . . Impact Weapon 3 | . . . . 3 8 7 Peak Build Rating 29 | 5 7 11 19 24 29 26 Average Rating 15 | 3 6 8 16 17 22 17 On Entrance 8 | . 5 5 4 9 24 12 Naked Turns . | . . . . . . . Heaviest Build 36 | 12 16 34 36 12 16 15 Greatest Support 30 | 20 20 30 30 15 15 30 Greatest Overweight (x) 8 | 1 . 3 8 . 1 3 Average Overweight (x) . | . . . 1 . . . Largest Inventory Capacity 15 | 8 8 15 15 5 5 5 Average Capacity 10 | 6 8 14 14 5 5 5 Most Carried 15 | 4 6 14 15 5 5 5 Average Carried 8 | 1 3 11 13 4 4 4 Final Capacity 15 | 8 8 15 5 5 5 5 Final Carried 11 | 1 6 11 5 5 5 5 Class Distribution -------------------- 67% | Mutant 31% | Hacker-Mutant Dominant Class ---------------- Mutant | -10/Materials Mutant | -9/Materials Mutant | -9/Storage Hacker-Mutant | -8/Materials Hacker-Mutant | -8/Garrison Mutant | -8/Materials Resources | -11 -10 -9 -9 -8 -8 -8 ----------- Run | Yrd Mat Mat Sto Mat Gar Mat Matter Collected 1390 | 218 35 321 346 95 100 275 Remotely . | . . . . . . . Salvage Created 1746 | . 35 212 795 . 328 376 Parts 114 | . 2 23 50 . 27 12 Haulers Intercepted 4 | . . 1 3 . . . Recyclers Shooed . | . . . . . . . Parts Field Recycled . | . . . . . . . Retrieved Matter . | . . . . . . . Parts Self-Destructed . | . . . . . . . Prevented . | . . . . . . . Kills | -11 -10 -9 -9 -8 -8 -8 ------- Run | Yrd Mat Mat Sto Mat Gar Mat Combat Hostiles Destroyed 54 | . 1 12 21 . 11 9 Melee 7 | . . . . . 2 5 Guns 6 | . . 1 3 . 2 . Cannons 21 | . . 11 10 . . . AOE 18 | . 1 . 7 . 7 3 Classes Destroyed 10 | . 1 3 4 . . 2 Worker 1 | . . . 1 . . . Builder 3 | . . 1 2 . . . Tunneler 1 | . . . . . . 1 Hauler 4 | . . 1 3 . . . Watcher 1 | . . . 1 . . . Swarmer 26 | . . 9 7 . 7 3 Grunt 18 | . 1 3 10 . 1 3 Protector 1 | . . . 1 . . . Sentry 7 | . . . 3 . 3 1 Specialist 2 | . . . . . . 2 Best Kill Streak 11 | . 1 9 11 . 5 3 Combat Bots Only 9 | . 1 8 9 . 5 3 Max Kills in Single Turn 4 | . 1 2 4 . 3 2 Gunslinging . | . . . . . . . Exploded 4 | . 1 . 4 . 2 2 Melee 1 | . . . . . 1 1 Uniques/NPCs Destroyed . | . . . . . . . Combat | -11 -10 -9 -9 -8 -8 -8 -------- Run | Yrd Mat Mat Sto Mat Gar Mat Hostile Shots Fired 469 | . 3 135 111 20 62 138 Missed 162 | . 1 33 26 16 32 54 Damage Taken 3849 | . 57 917 1048 62 387 1378 Core 960 | . 12 117 280 30 108 413 Absorbed by Shields . | . . . . . . . Redirected to Shielding 129 | . . 21 . . . 108 Ignored by Resistances 10 | . . . . . . 10 Core Remaining (%) 65 | 100 95 . . . . . Volleys Fired 105 | . 3 40 50 . 10 2 Largest 2 | . 2 2 2 . 2 1 Hottest 136 | . 70 78 136 . 81 36 Shots Fired 197 | . 5 76 101 . 12 3 Gun 45 | . 3 3 36 . 3 . Cannon 135 | . . 73 61 . . 1 Launcher 17 | . 2 . 4 . 9 2 Special . | . . . . . . . Kinetic 88 | . . 73 14 . . 1 Thermal 83 | . . . 83 . . . Explosive 6 | . 2 . 4 . . . Electromagnetic 20 | . 3 3 . . 12 2 Robot Hit Streak 18 | . 3 7 18 . 6 2 Robot Miss Streak 6 | . 2 6 3 . 1 2 Penetration Max . | . . . . . . . Secondary Targets . | . . . . . . . Shots Hit Robots 147 | . 3 31 67 2 14 30 Core Hits 79 | . 3 15 36 . 16 9 Critical Kills 3 | . . . 1 . . 2 Critical Parts Destroyed 2 | . . . . . 1 1 Critical Strikes 12 | . . 2 4 . 2 4 Burn 3 | . . . 3 . . . Meltdown 1 | . . . 1 . . . Blast 2 | . . 2 . . . . Smash 5 | . . . . . 2 3 Sever 1 | . . . . . . 1 Melee Attacks 86 | . . . . 7 36 43 Impact 65 | . . . . 7 36 22 Slashing 21 | . . . . . . 21 Piercing . | . . . . . . . Sneak Attacks 1 | . . . . 1 . . Combat Hostiles . | . . . . . . . Follow-up Attacks 5 | . . . . . . 5 Damage Inflicted 3936 | . 97 642 1706 71 436 984 Guns 456 | . 15 25 398 . 18 . Cannons 1433 | . . 617 803 . . 13 Explosions 969 | . 82 . 494 . 275 118 Melee 1067 | . . . . 71 143 853 Ramming 11 | . . . 11 . . . Kinetic 846 | . . 617 216 . . 13 Thermal 1044 | . . . 985 . 16 43 Explosive 576 | . 82 . 494 . . . Electromagnetic 392 | . 15 25 . . 277 75 Impact 601 | . . . . 71 143 387 Slashing 466 | . . . . . . 466 Piercing . | . . . . . . . Highest Corruption 15 | . . . 2 . 10 15 Average Corruption 6 | . . . 1 . 10 14 Corruption Purged . | . . . . . . . Corruption Blocked . | . . . . . . . Effects 33 | . . . 14 . 3 16 Message Errors 7 | . . . 3 . 1 3 Matter Fused 4 | . . . 1 . . 3 Heat Flow Errors 2 | . . . 1 . . 1 Energy Discharges 6 | . . . 2 . 2 2 Parts Rejected 1 | . . . 1 . . . Parts Fused 1 | . . . 1 . . . Data Loss (minor) 6 | . . . 2 . . 4 Data Loss (major) 3 | . . . 2 . . 1 Misfires 2 | . . . 1 . . 1 Misdirections 1 | . . . . . . 1 Overload Shots . | . . . . . . . Overflow Damage 165 | . . . 8 19 25 113 Projectiles . | . . . . . . . Explosions 84 | . . . 8 . . 76 Melee 81 | . . . . 19 25 37 Knockbacks 17 | . . 12 1 . . 4 Impact 4 | . . . . . . 4 Kinetic 13 | . . 12 1 . . . Secondary . | . . . . . . . Self-Inflicted Damage 220 | . 35 . 24 . . 161 Shots 9 | . 2 . 2 . . 5 Rammed . | . . . . . . . Targets Rammed 4 | . . 1 3 . . . Kicked 4 | . . 1 3 . . . Crushed . | . . . . . . . Highest Temperature 326 | . 24 170 326 . 60 197 Average Temperature 69 | . 15 53 82 . 19 79 Received Heat Transfer 1041 | . 12 189 399 36 135 270 Effects 1 | . . . 1 . . . Energy Bleed 1 | . . . 1 . . . Siege Activations . | . . . . . . . Robots Corrupted 1 | . . . . . . 1 Combat Hostiles 1 | . . . . . . 1 Parts Fried 2 | . . . . . . 2 Impact Corruptions 3 | . . . . 1 1 1 Robots Melted 1 | . . . 1 . . . Combat Hostiles 1 | . . . 1 . . . Parts Melted 4 | . . . 4 . . . Heat Transferred 2196 | . . . 2046 . 100 50 Parts Sabotaged . | . . . . . . . Parts Stolen . | . . . . . . . Parts Stripped . | . . . . . . . Power Chain Reactions 4 | . . . . . 1 3 Alert | -11 -10 -9 -9 -8 -8 -8 ------- Run | Yrd Mat Mat Sto Mat Gar Mat Peak Influence 890 | . 66 457 715 313 890 662 Initial 429 | . . . 104 111 203 429 Average 347 | . 24 149 386 236 502 545 Maximum Alert Level 3 | . . 2 3 1 3 2 Low Security (%) 28 | 100 100 68 16 36 . . Level 1 26 | . . 10 36 63 35 . Level 2 40 | . . 20 42 . 45 100 Level 3 5 | . . . 4 . 18 . Level 4 . | . . . . . . . Level 5 . | . . . . . . . High Security . | . . . . . . . Max Security . | . . . . . . . Squads Dispatched 10 | . 2 1 3 2 . 2 Investigation 2 | . 1 . . 1 . . Extermination . | . . . . . . . Reinforcement 6 | . 1 1 1 1 . 2 Assault 2 | . . . 2 . . . Garrison . | . . . . . . . Intercept . | . . . . . . . Searches Triggered . | . . . . . . . Construction Impeded 1 | . . . 1 . . . Haulers Reinforced . | . . . . . . . Active Scanning Responses . | . . . . . . . Cargo Convoy Interrupts . | . . . . . . . Stealth | -11 -10 -9 -9 -8 -8 -8 --------- Run | Yrd Mat Mat Sto Mat Gar Mat Distress Signals 7 | . 1 . 2 2 . 2 Communications Jammed . | . . . . . . . Distress Signals . | . . . . . . . Times Spotted 127 | . 2 27 40 20 20 18 Peak Tracking Total 13 | . 4 8 9 13 7 8 Tactical Retreats 19 | . 1 4 4 3 3 4 Traps | -11 -10 -9 -9 -8 -8 -8 ------- Run | Yrd Mat Mat Sto Mat Gar Mat Traps Triggered 7 | . 2 . 2 . 3 . Indirectly 1 | . . . . . 1 . Trap Hack Attempts . | . . . . . . . Triggered . | . . . . . . . Disarmed . | . . . . . . . Reprogrammed . | . . . . . . . Reused . | . . . . . . . Traps Extracted . | . . . . . . . Installed . | . . . . . . . Triggered . | . . . . . . . Machines | -11 -10 -9 -9 -8 -8 -8 ---------- Run | Yrd Mat Mat Sto Mat Gar Mat Machines Disabled 9 | . . 2 3 . 4 . Max in Single Turn 1 | . . 1 1 . 1 . Garrison Relay 4 | . . . . . 4 . Machines Repaired . | . . . . . . . Machines Dismantled . | . . . . . . . Machines Sabotaged . | . . . . . . . Overloaded Fab Kills . | . . . . . . . Hacking | -11 -10 -9 -9 -8 -8 -8 --------- Run | Yrd Mat Mat Sto Mat Gar Mat Machines Accessed 17 | . 3 2 6 2 2 2 Terminals 14 | . 3 1 5 1 2 2 Fabricators . | . . . . . . . Repair Stations . | . . . . . . . Recycling Units 1 | . . . 1 . . . Scanalyzers 1 | . . 1 . . . . Garrison Access 1 | . . . . 1 . . Total Hacks 51 | . 7 6 16 6 6 10 Successful 25 | . 3 5 7 4 2 4 Failed 26 | . 4 1 9 2 4 6 Catastrophic 7 | . 2 . 3 1 1 . Database Lockouts . | . . . . . . . Manual 20 | . 7 2 . 5 4 2 Terminals 43 | . 7 2 13 5 6 10 Fabricators . | . . . . . . . Repair Stations . | . . . . . . . Recycling Units 3 | . . . 3 . . . Scanalyzers 4 | . . 4 . . . . Garrison Access 1 | . . . . 1 . . Terminal Hacks 15 | . 2 . 6 2 2 3 Prototype ID Bank 1 | . . . . . . 1 Open Door 1 | . . . 1 . . . Emergency Access Points 1 | . . . . . . 1 Terminal Index 2 | . 1 . . 1 . . Garrison Index 1 | . . . . 1 . . Alert Level 2 | . . . 2 . . . Unreport Threat 4 | . 1 . 3 . . . Zone Layout 1 | . . . . . . 1 Patrol Navigation 1 | . . . . . 1 . Security Stations 1 | . . . . . 1 . Fabricator Hacks . | . . . . . . . Repair Station Hacks . | . . . . . . . Recycling Unit Hacks 1 | . . . 1 . . . Retrieve Components 1 | . . . 1 . . . Scanalyzer 4 | . . 4 . . . . Insert Component 2 | . . 2 . . . . Analyze 2 | . . 2 . . . . Garrison Access Hacks 1 | . . . . 1 . . Unlock Access 1 | . . . . 1 . . Unauthorized Hacks 4 | . 1 1 . 1 . 1 Terminals 4 | . 1 1 . 1 . 1 Botnet 4 | . 1 1 . 1 . 1 Fabricators . | . . . . . . . Repair Stations . | . . . . . . . Recycling Units . | . . . . . . . Scanalyzers . | . . . . . . . Garrison Access . | . . . . . . . Data Cores Recovered . | . . . . . . . Used . | . . . . . . . Hacking Detections 15 | . 2 2 6 1 2 2 Full Trace Events 5 | . 1 1 . 1 2 . Feedback Events . | . . . . . . . Feedback Blocked . | . . . . . . . Robot Schematics Acquired . | . . . . . . . Robots Built . | . . . . . . . Authchips . | . . . . . . . Time . | . . . . . . . Total Robot Build Rating . | . . . . . . . Part Schematics Acquired 2 | . . 2 . . . . Parts Built . | . . . . . . . Authchips . | . . . . . . . Time . | . . . . . . . Total Part Build Rating . | . . . . . . . Parts Repaired . | . . . . . . . Time . | . . . . . . . Parts Recycled . | . . . . . . . Recycled Matter . | . . . . . . . Retrieved Matter . | . . . . . . . Retrieved Components 3 | . . . 3 . . . Parts Scanalyzed 2 | . . 2 . . . . Part Schematics Acquired 2 | . . 2 . . . . Parts Damaged . | . . . . . . . Bothacking | -11 -10 -9 -9 -8 -8 -8 ------------ Run | Yrd Mat Mat Sto Mat Gar Mat Used RIF Installer . | . . . . . . . Robots Hacked . | . . . . . . . Non-combat . | . . . . . . . Combat . | . . . . . . . Robot Hacks Applied . | . . . . . . . Relay Couplers Released 17 | . . . . . 17 . Machine Destruction 17 | . . . . . 17 . Fabnet Peak Effective % . | . . . . . . . Robots Rewired . | . . . . . . . Allies Hacked . | . . . . . . . Hacks Repelled . | . . . . . . . Allies | -11 -10 -9 -9 -8 -8 -8 -------- Run | Yrd Mat Mat Sto Mat Gar Mat Total Allies 2 | . . . 2 . . . Largest Group 2 | . . . 2 . . . Highest-Rated Group 62 | . . . 62 . . . Highest-Rated Ally 31 | . . . 31 . . . Total Orders . | . . . . . . . Ally Attacks 12 | . . . 12 . . . Total Damage 180 | . . . 180 . . . Kills 4 | . . . 4 . . . Allies Corrupted . | . . . . . . . Allies Melted . | . . . . . . . Intel | -11 -10 -9 -9 -8 -8 -8 ------- Run | Yrd Mat Mat Sto Mat Gar Mat Robot Analysis Total . | . . . . . . . Derelict Logs Recovered . | . . . . . . . Drone Launches . | . . . . . . . Drone Recoveries . | . . . . . . . Exploration | -11 -10 -9 -9 -8 -8 -8 ------------- Run | Yrd Mat Mat Sto Mat Gar Mat Turns Passed 2256 | 43 131 402 710 211 437 322 Spaces Moved 1742 | 31 96 158 348 377 490 242 Core 21 | 12 . . 1 . . 8 Treads . | . . . . . . . Legs 519 | 19 96 158 147 . . 99 Wheels 164 | . . . 164 . . . Hover 490 | . . . . 95 395 . Flight 548 | . . . 36 282 95 135 Fastest Speed 34 | 50 120 120 50 40 34 37 Average Speed 85 | 107 120 163 137 45 52 73 Slowest Speed 450 | 120 120 330 450 60 116 200 Overloaded Moves . | . . . . . . . Propulsion Burnouts . | . . . . . . . Robots Hopped 14 | . . . . 7 2 5 Cave-ins Triggered . | . . . . . . . Exploration Rate (%) 35 | 2 35 17 60 45 62 30 Regions Visited 6 Branch Regions 1 Pre-discovered Areas . | . . . . . . . Known Exits Taken 1 | . . . . 1 . . Unknown Exits Taken 4 | 1 1 1 1 . . . Scrap Searched . | . . . . . . . Spaces Dug 11 | . . . . 2 7 2 Terrain Destroyed 54 | . 10 6 17 2 7 12 Melee 11 | . . . . 2 7 2 Projectile 6 | . . 6 . . . . AOE 37 | . 10 . 17 . . 10 Terrain Rammed . | . . . . . . . Walls Destroyed . | . . . . . . . Machines Disabled . | . . . . . . . Actions | -11 -10 -9 -9 -8 -8 -8 --------- Run | Yrd Mat Mat Sto Mat Gar Mat Total 2147 | 39 106 225 474 396 594 313 Wait 68 | . . 7 29 2 16 14 Move 1708 | 30 95 157 347 362 485 232 Hop 14 | . . . . 7 2 5 Pick Up 37 | 4 6 12 7 4 4 . Fast Attach 44 | 2 1 . 14 7 4 16 Attach 23 | 3 1 6 5 2 4 2 Detach 14 | . . . 8 1 2 3 Swap 4 | . . 1 1 . 1 1 Drop 21 | . . 1 10 4 4 2 Fire 105 | . 3 40 50 . 10 2 Melee 79 | . . . . 7 36 36 Ram . | . . . . . . . Kick 4 | . . 1 3 . . . Crush . | . . . . . . . Escape Stasis 26 | . . . . . 26 . Rewire . | . . . . . . . Trap . | . . . . . . . Miscellaneous . | . . . . . . . Route ------- -11/Scrapyard -10/Materials -9/Materials (discovered 2 exits: *Sto x2) -9/Storage -8/Materials (discovered 2 exits: [*Fac] / Gar) -8/Garrison (discovered 2 exits: *Mat x2) -8/Materials (discovered 1 exit: [*Fac]) History --------- Turn | Location | Event 19 | -11/Scrapyard | Discovered new exit (range 14) 44 | -11/Scrapyard | Entered Materials 144 | -10/Materials | Discovered new exit (range 16) 175 | -10/Materials | Entered another Materials area 175 | -9/Materials | Evolved 2 slots: Propulsion x2 178 | -9/Materials | Discovered new exit (range 8) 311 | -9/Materials | Build established: Mutant 547 | -9/Materials | Destroyed 8 combat bots 549 | -9/Materials | Lost 4 parts (1p1n2w) 566 | -9/Materials | Discovered new exit (range 4) 577 | -9/Materials | Entered Storage 613 | -9/Storage | Met a pair of Derelict thieves 1115 | -9/Storage | Core integrity fell below 50% 1149 | -9/Storage | Destroyed 9 combat bots 1156 | -9/Storage | Lost 3 parts (2n1w) 1223 | -9/Storage | Core integrity fell below 20% 1271 | -9/Storage | Discovered new exit (range 12) 1287 | -9/Storage | Entered Materials 1287 | -8/Materials | Evolved 2 slots: Utility x2 1362 | -8/Materials | Discovered new exit (range 11) 1415 | -8/Materials | Met 7R-MNS 1497 | -8/Materials | Identified exit to Garrison 1498 | -8/Materials | Entered Garrison 1569 | -8/Garrison | Build established: Hacker-Mutant 1576 | -8/Garrison | Triggered checkpoint 1587 | -8/Garrison | Garrison Relay disabled 1735 | -8/Garrison | Garrison Relay disabled 1758 | -8/Garrison | Discovered new exit (range 11) 1762 | -8/Garrison | Learned Materials security intel 1842 | -8/Garrison | Triggered checkpoint 1870 | -8/Garrison | System corruption reached 10% 1885 | -8/Garrison | Discovered new exit (range 8) 1901 | -8/Garrison | Lost 4 parts (1p2n1u) 1912 | -8/Garrison | Garrison Relay disabled 1916 | -8/Garrison | Garrison Relay disabled 1935 | -8/Garrison | Entered Materials 2024 | -8/Materials | Lost 8 parts (1p3n2u2w) 2094 | -8/Materials | Lost 3 parts (1p2n) 2112 | -8/Materials | Core integrity fell below 50% 2199 | -8/Materials | Lost 3 parts (1n2u) 2252 | -8/Materials | Core integrity fell below 20% 2252 | -8/Materials | Discovered new exit (range 10) 2257 | -8/Materials | Destroyed by X-57 Shotgunner with Shotgun Last Messages --------------- 02195_ K-01 Serf collects debris. 02195_ Acquired 56 matter. 02196_ K-01 Serf collects debris. 02202_ Reflective Plating destroyed. 02204_ K-01 Serf collects debris. 02204_ Y-45 Defender destroyed. 02207_ Acquired 51 matter. 02207_ K-01 Serf collects debris. 02214_ System corrupted: Energy discharge (-44). 02226_ ALERT: Suspicious intruders detected, dispatching Specialist reinforcements to area. 02228_ U-05 Engineer lays Concrete. 02231_ 62J=U5MPUM5HYBY>AZ>V0CTNFPMUTDWJUC#5 02247_ Acquired Imp. Sensor Array. 02251_ K-01 Serf collects debris. 02251_ W-25 Informer sends out distress signal. 02251_ Carbon-fiber Leg destroyed. 02252_ EXIT=FOUND 02254_ Lgt. Nuclear Core destroyed. 02256_ System corrupted: Energy discharge (-27). Map ----- +----------------------------------------------------+ | | | | | | | ######???????????????????????????????????????????? | | #???????????????????????????????????????????? | | #???????????????????????????????????????????? | | #???????????????????????????????????????????? | | #???????????????????????????????????????????? | | | #???????????????????????????????????????????? | | | #???????????????????????????????????????????? | | #???????????????????????????????????????????? | | #???????????????????????????????????????????? | | +############"###????????????????????????????????? | | H ???????????????????????????? | | ###### ##+###?????????????????????????????????? | | ## ######## #?????????????????????????????????? | | # # #?????????????????????????????????? | | # ! # #???????#####?????????????????????? | | # # #???????# #?????????????????????? | | # # #???????# < #?????????????????????? | | # # #???????# #?????????????????????? | | !# # #???????# +?????????????????????? | | + ##+#????????# #?????????????????????? | | !# [ " #????????# #?????????????????????? | | ############ #?######## #?????????????????????? | | # ## #?# #x@ #?????????????????????? | | # ## #?# # #?????????????????????? | | !+ ## #?# """ #x #?????????????????????? | | # ## ### """ + #?????????????????????? | | # ## + """ # #?????????????????????? | | # ! ###### # #?????????????????????? | | # #????######## #?????????????????????? | | # #??????????? w#????????????????????? | | # #??????????? ???????????????????? | | #####+####??????????# Y ??????????????????? | | #???# #?????????????# ?????????????????? | | #???# #?????????????# # ????????????????? | | #???? ??????????????####### "???????????????? | | ######? ?###???#####?????????? "???????????????? | | #? ?# #?????????? ???????????????? | | #? ?# """ #??????????? ???????????????? | | #? ?# """"" #?????????????????????????????? | | [ ## ## """"" ]#?????????????????????????????? | | =% ## ## """"" #?????????????????????????????? | | ""/#### ## """ #??????#??????????????????????? | | ## #??# ## #????! #??????????????????????? | | ?# #??# ## #??!!! #??????????????????????? | | ?# #??# ######/###/# !! #??????????????????????? | | ?# #??# #???# + #??????????????????????? | | ## #### ##### # #??????????????????????? | +----------------------------------------------------+ Best States ------------- Heat Dissipation 31 Energy Generation 14 Energy Capacity 280 Matter Stores 402 Matter Capacity 450 Sight Range 16 Robot Scan Range 15 Terrain Scan Density 10 Armor Coverage 150 Resistance: TH 10 Resistance: EM 15 Core Shielding 20 Propulsion Shielding 66 Evasion (%) 63 Melee Accuracy 5 Offensive Hacking 30 Item Schematics ----------------- Lgt. Armor Plating | -9/Materials | Scanalyzed Imp. Flight Unit | -9/Materials | Scanalyzed Robot Schematics ------------------ None Fabricated ------------ Nothing Alien Tech Used ----------------- None Achievements -------------- None Challenges ------------ None Game ------ Seed GatlingBeamCutter Manual? 0 Play Time 00:40:46 Cumulative 69.5 hours Start 2024.08.14 @ 01:08:49 End 2024.08.14 @ 01:46:52 Sessions 1 Manual Loads 0 Difficulty Rogue Special Mode None Game No. 39 Rogue 31 Adventurer 8 Explorer 0 Win Type - Total 1 Types 1/0/0/0/0/0/0/0/0 Lore% 25 Gallery% 45 Achievement% 42 Wizard Run 0 Options --------- Layout 0 ASCII 0 Keyboard 1 Movement Numpad Keybinds 1 Fullscreen 1 Font 18/SmallcapsGlow Map View 76x50 Zoom Use 0% Tactical HUD 1 Map Filters NONE Filters NONE Steam 1 RUN: 4e4e3ad1-42e4-4151-9ee7-951d70d80de9